Cogmind - Beta 11 X6 @@@ ROGUE MODE // 2021.08.11 @ 12:06:41 Player: Olga Result: Destroyed by as-05433 with Assembled Maul Performance ------------- Evolutions (0) 0 Regions Visited (2) 400 Robots Destroyed (1) 5 Value Destroyed (34) 34 Prototype IDs (0) 0 Alien Tech Used (0) 0 Bonus (0) 0 TOTAL SCORE: 439 Bonus ------- None Cogmind --------- Core Integrity 0/250 Matter 294/300 Energy 125/125 System Corruption 0% Temperature Cool (0) Movement Walking (120) Location -10/Mines Parts ------- > --- POWER (1) -------- Light Ion Engine > --- PROPULSION (2) --- Aluminum Leg Aluminum Leg > --- UTILITY (2) ------ Small Storage Unit Signal Interpreter > --- WEAPON (2) ------- Small Laser Assault Rifle > --- INVENTORY (8) ---- Flexi-carbon Leg Wheel Wheel Improved Propulsion Shielding Heavy Armor Plating Bore Cannon Rocket Launcher Peak State ------------ > --- POWER ------------ (None) > --- PROPULSION ------- Aluminum Leg Flexi-carbon Leg > --- UTILITY ---------- Small Storage Unit Signal Interpreter > --- WEAPON ----------- Small Laser Assault Rifle > --- INVENTORY -------- Aluminum Leg Flexi-carbon Leg Wheel Wheel Improved Propulsion Shielding Heavy Armor Plating Bore Cannon [Rating: 12] Favorites ----------- Power Ion Engine Engine Ion Engine Propulsion Aluminum Leg Leg Aluminum Leg Utility Small Storage Unit Storage Small Storage Unit Processor Signal Interpreter Weapon Small Laser Energy Gun Small Laser Ballistic Gun Assault Rifle Build | -11 -10 -10 ------- Run | Scr Mat Min Slots Evolved . | . . . Power . | . . . Propulsion . | . . . Utility . | . . . Weapon . | . . . Parts Attached 9 | . 1 8 Power 2 | . . 2 Engine 2 | . . 2 Core . | . . . Reactor . | . . . Propulsion 3 | . . 3 Treads . | . . . Leg 3 | . . 3 Wheel . | . . . Hover . | . . . Flight . | . . . Utility 1 | . 1 . Device . | . . . Storage . | . . . Processor 1 | . 1 . Hackware . | . . . Protection . | . . . Artifact . | . . . Weapon 3 | . . 3 Energy Gun . | . . . Energy Cannon . | . . . Ballistic Gun 3 | . . 3 Ballistic Cannon . | . . . Launcher . | . . . Special Weapon . | . . . Impact Weapon . | . . . Slashing Weapon . | . . . Piercing Weapon . | . . . Special Melee Weapon . | . . . Unidentified Prototypes . | . . . Parts Lost 3 | . . 3 Power 2 | . . 2 Propulsion 1 | . . 1 Utility . | . . . Weapon . | . . . Highest Loss Streak 1 | . . 1 Average Slot Usage (%) 91 | . 85 92 Engine 9 | . 14 7 Leg 27 | . 28 27 Storage 14 | . 14 14 Processor 10 | . . 14 Energy Gun 14 | . 14 14 Ballistic Gun 14 | . 14 14 Naked Turns . | . . . Heaviest Build 13 | 13 13 13 Greatest Support 30 | 20 20 30 Greatest Overweight (x) 1 | . . 1 Average Overweight (x) . | . . . Largest Inventory Capacity 8 | . 8 8 Average Capacity 8 | . 8 8 Most Carried 8 | . 8 8 Average Carried 7 | . 6 7 Final Capacity 8 | 8 8 8 Final Carried 8 | 6 7 8 Class Distribution -------------------- 100% | Mutant Dominant Class ---------------- Mutant | -10/Materials Mutant | -10/Mines Resources | -11 -10 -10 ----------- Run | Scr Mat Min Matter Collected 352 | 200 6 146 Remotely . | . . . Salvage Created 150 | . 50 100 Parts 2 | . 2 . Haulers Intercepted . | . . . Recyclers Shooed . | . . . Parts Field Recycled . | . . . Retrieved Matter . | . . . Parts Self-Destructed . | . . . Prevented . | . . . Kills | -11 -10 -10 ------- Run | Scr Mat Min Combat Hostiles Destroyed 9 | . 1 8 Guns 9 | . 1 8 Classes Destroyed 2 | . 1 1 Grunt 1 | . 1 . Assembled 8 | . . 8 Best Kill Streak 5 | . 1 5 Combat Bots Only 5 | . 1 5 Max Kills in Single Turn 1 | . 1 1 Gunslinging . | . . . Exploded . | . . . Melee . | . . . Uniques/NPCs Destroyed . | . . . Combat | -11 -10 -10 -------- Run | Scr Mat Min Damage Taken 779 | . 34 745 Core 271 | . 12 259 Absorbed by Shields . | . . . Core Remaining (%) 100 | 100 . . Volleys Fired 27 | . 2 25 Largest 2 | . 2 2 Hottest 60 | . 60 60 Shots Fired 54 | . 4 50 Gun 54 | . 4 50 Cannon . | . . . Launcher . | . . . Special . | . . . Kinetic 27 | . 2 25 Thermal 27 | . 2 25 Explosive . | . . . Electromagnetic . | . . . Robot Hit Streak 8 | . 2 8 Robot Miss Streak 6 | . 1 6 Penetration Max . | . . . Secondary Targets 2 | . . 2 Max Gunslinging Chain 1 | . . 1 Shots Hit Robots 31 | . 3 28 Core Hits 18 | . 2 16 Critical Kills 1 | . . 1 Critical Parts Destroyed 1 | . . 1 Critical Strikes 2 | . . 2 Destroy 2 | . . 2 Melee Attacks . | . . . Impact . | . . . Slashing . | . . . Piercing . | . . . Sneak Attacks . | . . . Combat Hostiles . | . . . Follow-up Attacks . | . . . Damage Inflicted 373 | . 37 336 Guns 373 | . 37 336 Cannons . | . . . Explosions . | . . . Melee . | . . . Ramming . | . . . Kinetic 208 | . 26 182 Thermal 165 | . 11 154 Explosive . | . . . Electromagnetic . | . . . Impact . | . . . Slashing . | . . . Piercing . | . . . Highest Corruption . | . . . Average Corruption . | . . . Corruption Purged . | . . . Overload Shots . | . . . Overflow Damage . | . . . Projectiles . | . . . Explosions . | . . . Melee . | . . . Knockbacks . | . . . Impact . | . . . Kinetic . | . . . Secondary . | . . . Self-Inflicted Damage . | . . . Shots . | . . . Rammed . | . . . Targets Rammed . | . . . Kicked . | . . . Crushed . | . . . Highest Temperature 155 | . 6 155 Average Temperature 63 | . 6 66 Received Heat Transfer 238 | . 18 220 Siege Activations . | . . . Robots Corrupted . | . . . Combat Hostiles . | . . . Parts Fried . | . . . Impact Corruptions . | . . . Robots Melted . | . . . Combat Hostiles . | . . . Parts Melted . | . . . Heat Transferred 375 | . 25 350 Parts Sabotaged . | . . . Parts Stolen . | . . . Parts Stripped . | . . . Power Chain Reactions . | . . . Missiles Intercepted . | . . . Alert | -11 -10 -10 ------- Run | Scr Mat Min Peak Influence 30 | . 30 15 Initial 11 | . . 11 Average 7 | . 5 7 Maximum Alert Level . | . . . Low Security (%) 100 | . 100 100 Level 1 . | . . . Level 2 . | . . . Level 3 . | . . . Level 4 . | . . . Level 5 . | . . . High Security . | . . . Max Security . | . . . Squads Dispatched 1 | . 1 . Investigation . | . . . Extermination . | . . . Reinforcement 1 | . 1 . Assault . | . . . Garrison . | . . . Intercept . | . . . Construction Impeded . | . . . Haulers Reinforced . | . . . Active Scanning Responses . | . . . Cargo Convoy Interrupts . | . . . Stealth | -11 -10 -10 --------- Run | Scr Mat Min Distress Signals . | . . . Communications Jammed . | . . . Distress Signals . | . . . Times Spotted 14 | . 3 11 Peak Tracking Total 6 | . 2 6 Tactical Retreats . | . . . Traps | -11 -10 -10 ------- Run | Scr Mat Min Traps Triggered 1 | . . 1 Indirectly . | . . . Trap Hack Attempts . | . . . Triggered . | . . . Disarmed . | . . . Reprogrammed . | . . . Reused . | . . . Traps Extracted . | . . . Installed . | . . . Triggered . | . . . Machines | -11 -10 -10 ---------- Run | Scr Mat Min Machines Disabled . | . . . Max in Single Turn . | . . . Machines Sabotaged . | . . . Garrisons Compromised . | . . . Overloaded Fab Kills . | . . . Fab Network Shutdowns . | . . . Hacking | -11 -10 -10 --------- Run | Scr Mat Min Machines Accessed 2 | . 1 1 Terminals 1 | . 1 . Fabricators . | . . . Repair Stations . | . . . Recycling Units . | . . . Scanalyzers . | . . . Garrison Access . | . . . Total Hacks 3 | . 2 1 Successful 2 | . 1 1 Failed 1 | . 1 . Catastrophic . | . . . Database Lockouts . | . . . Manual 2 | . 2 . Terminals 2 | . 2 . Fabricators . | . . . Repair Stations . | . . . Recycling Units . | . . . Scanalyzers . | . . . Garrison Access . | . . . Terminal Hacks 1 | . . 1 Open Door 1 | . . 1 Fabricator Hacks . | . . . Repair Station Hacks . | . . . Recycling Unit Hacks . | . . . Scanalyzer . | . . . Garrison Access Hacks . | . . . Unauthorized Hacks 1 | . 1 . Terminals 1 | . 1 . Botnet 1 | . 1 . Fabricators . | . . . Repair Stations . | . . . Recycling Units . | . . . Scanalyzers . | . . . Garrison Access . | . . . Data Cores Recovered . | . . . Used . | . . . Hacking Detections 1 | . 1 . Full Trace Events . | . . . Feedback Events . | . . . Feedback Blocked . | . . . Robot Schematics Acquired . | . . . Robots Built . | . . . Matter . | . . . Time . | . . . Total Robot Build Rating . | . . . Part Schematics Acquired . | . . . Parts Built . | . . . Matter . | . . . Time . | . . . Total Part Build Rating . | . . . Parts Repaired . | . . . Time . | . . . Parts Recycled . | . . . Recycled Matter . | . . . Retrieved Matter . | . . . Retrieved Components . | . . . Parts Scanalyzed . | . . . Part Schematics Acquired . | . . . Parts Damaged . | . . . Bothacking | -11 -10 -10 ------------ Run | Scr Mat Min Used RIF Installer . | . . . Robots Hacked . | . . . Non-combat . | . . . Combat . | . . . Robot Hacks Applied . | . . . Relay Couplers Released . | . . . Robots Rewired . | . . . Allies Hacked . | . . . Hacks Repelled . | . . . Allies | -11 -10 -10 -------- Run | Scr Mat Min Total Allies . | . . . Largest Group . | . . . Highest-Rated Group . | . . . Highest-Rated Ally . | . . . Total Orders . | . . . Ally Attacks . | . . . Total Damage . | . . . Kills . | . . . Allies Corrupted . | . . . Allies Melted . | . . . Intel | -11 -10 -10 ------- Run | Scr Mat Min Robot Analysis Total . | . . . Derelict Logs Recovered 1 | . . 1 Drone Launches . | . . . Drone Recoveries . | . . . Exploration | -11 -10 -10 ------------- Run | Scr Mat Min Turns Passed 378 | . 84 294 Spaces Moved 231 | 1 62 168 Core . | . . . Treads . | . . . Legs 231 | 1 62 168 Wheels . | . . . Hover . | . . . Flight . | . . . Fastest Speed 120 | 120 120 120 Average Speed 120 | 120 120 120 Slowest Speed 200 | 120 120 200 Overloaded Moves . | . . . Propulsion Burnouts . | . . . Robots Hopped . | . . . Cave-ins Triggered . | . . . Exploration Rate (%) 18 | 1 17 36 Regions Visited 2 Branch Regions 1 Pre-discovered Areas . | . . . Known Exits Taken 1 | . 1 . Unknown Exits Taken 1 | 1 . . Scrap Searched 1 | . . 1 Spaces Dug . | . . . Terrain Destroyed . | . . . Melee . | . . . Projectile . | . . . AOE . | . . . Terrain Rammed . | . . . Walls Destroyed . | . . . Machines Disabled . | . . . Actions | -11 -10 -10 --------- Run | Scr Mat Min Total 278 | . 67 211 Wait 1 | . 1 . Move 229 | . 61 168 Hop . | . . . Pick Up 8 | . 2 6 Fast Attach 2 | . . 2 Attach 4 | . 1 3 Detach . | . . . Swap 3 | . . 3 Drop 4 | . . 4 Fire 27 | . 2 25 Melee . | . . . Ram . | . . . Kick . | . . . Crush . | . . . Escape Stasis . | . . . Rewire . | . . . Trap . | . . . Miscellaneous . | . . . Route ------- -11/Scrapyard -10/Materials -10/Mines (discovered 1 exit: Mat) History --------- Turn | Location | Event 1 | -11/Scrapyard | Discovered new exit (range 0) 1 | -11/Scrapyard | Entered Materials 60 | -10/Materials | Discovered new exit (range 8) 85 | -10/Materials | Identified exit to Mines 85 | -10/Materials | Entered Mines 90 | -10/Mines | Met a Derelict who couldn't figure out how to use a Trap Extractor 143 | -10/Mines | Assembled infested the area 148 | -10/Mines | Assisted by a Guerilla fighting off Assembled 259 | -10/Mines | Identified exit to Materials 300 | -10/Mines | Core integrity fell below 50% 306 | -10/Mines | Build established: Mutant 308 | -10/Mines | Received a Rocket Launcher from a helpful Derelict 320 | -10/Mines | Core integrity fell below 20% 379 | -10/Mines | Destroyed by as-05433 with Assembled Maul Last Messages --------------- 00303_ Z8-JWQ(g): "Some of my friends down here think you need a mining laser when you travel the depths." 00304_ Z8-JWQ(g): "They are crazy." 00304_ D-53 Grenadier destroyed. 00305_ Z8-JWQ(g): "Everyone knows a good old rocket launcher goes a long way." 00306_ Z8-JWQ(g): "Need to get rid of a swarm? Done. Need a big hole in the wall? Done." 00307_ Z8-JWQ(g): "Need a small hole in the wall? Leave that to the mining laser wimps, I say!" 00308_ Z8-JWQ(g): "Would you like a rocket launcher? I know I would if I were you, so I'm going to lend you mine." 00308_ Z8-JWQ(g) slips back into the shadows. 00308_ Acquired 2 matter. 00309_ The unstable cave ceiling collapses. 00317_ Acquired Rocket Launcher. 00325_ as-71741 destroyed. 00328_ Acquired 17 matter. 00342_ Acquired Lgt. Ion Engine. 00344_ Acquired 13 matter. Map ----- +----------------------------------------------------+ | ??# [ #?????????????????????????????????????????? | | ??## %=#?????????????????????????????????????????? | | ???# ! ##????????????????????????????????????????? | | ??## % ##???????????????????????????????????????? | | ### % # #??????????????????????????????????? | | ???????????????????????????????? | | ??????????????????????????????? | | #### ## ### ??????????????????????????????? | | ???# #?######????????????????????????????????????? | | ???# #???????????????????????????????????????????? | | ???# #???????????????????????????????????????????? | | ???# #???????????????????????????????????????????? | | ?### #???????????????????????????????????????????? | | ?# #???????????????????????????????????????????? | | ?# ##??????????????????????????????#?????????????? | | ## ##????????????????????????????? #?????????????? | | # ###?????????????????????????? ##????????????? | | ##??? ????????????????????# ?????????????? | | #?? #??????????????????## ?????????????? | | #### #?????????????????# """?????????????? | | #????????????????# """?????????????? | | #### ##????????????### """?????????????? | | # ### ######??????## ???????????????? | | # #??##### #?????????????????? | | ### #?## ##????????????????? | | #### #### #?# @ #????????????????? | | ???## ####?## ### %a #????????????????? | | ????## #???## ## ### #????????????????? | | ?????## #??## ##??# ##????????????????? | | ??????#| #### ##????####?????????????????? | | ????###= #??????????????????????????? | | ????#% =!##### ##??????????????????????????? | | ????######???##### ##???????????????????????????? | | ?????????????????####????????????????????????????? | | ?????????????????????????????????????????????????? | | ?????????????????????????????????????????????????? | | ?????????????????????????????????????????????????? | | | | | | | | | | | | | | | | | | | | | | | | | | | +----------------------------------------------------+ Best States ------------- Heat Dissipation 25 Energy Generation 10 Energy Capacity 250 Matter Stores 300 Matter Capacity 300 Sight Range 16 Terrain Scan Density 10 Evasion (%) 55 Item Schematics ----------------- None Robot Schematics ------------------ None Fabricated ------------ Nothing Alien Tech Used ----------------- None Achievements -------------- None Challenges ------------ None Game ------ Seed ReflectiveSwarmRegenerator Manual? 0 Play Time 00:06:38 Cumulative 63.6 hours Start 2021.08.11 @ 12:01:05 End 2021.08.11 @ 12:06:41 Sessions 1 Manual Loads 0 Difficulty Rogue Special Mode None Game No. 79 Rogue 79 Adventurer 0 Explorer 0 Win Type - Total 0 Types 0/0/0/0/0/0/0/0/0 Lore% 49 Gallery% 45 Achievement% 37 Wizard Run 0 Options --------- ASCII 1 Keyboard 0 Movement Mouse Keybinds 0 Fullscreen 1 Font 18/SmallcapsGlow Map View 66x50 Tactical HUD 1 Map Filters NONE Filters NONE Steam 1 RUN: 9815939c-b5cb-40e4-96a4-f9c7acd2b76b